Cogmind - Beta 16.1 @@@ ROGUE MODE // 2026.04.27 @ 18:51:31 Player: ChromeKnight Result: Destroyed by S-10 Pest with Light Assault Rifle Performance ------------- Evolutions (0) 0 Regions Visited (3) 600 Robots Destroyed (38) 190 Value Destroyed (837) 837 Prototype IDs (1) 20 Alien Tech Used (0) 0 Bonus (30) 30 TOTAL SCORE: 1677 Bonus ------- Follower Combat Kills 30 Cogmind --------- Core Integrity 0/250 Matter 226/300 Energy 100/100 System Corruption 0% Temperature Cool (0) Movement Rolling (120) Ox1 Location -10/Subcaves Parts ------- > --- POWER (1) -------- (None) > --- PROPULSION (2) --- Subdweller Monowheel Subdweller Monowheel > --- UTILITY (2) ------ Large Storage Unit Targeting Computer > --- WEAPON (2) ------- Assault Rifle Battle Rifle > --- INVENTORY (15) --- Experimental Sensor Array Targeting Computer Light Armor Plating Light Armor Plating Scrap Shield Assault Rifle Light Assault Rifle Rocket Launcher Multitool Flamer Shrapnel Trap Peak State ------------ > --- POWER ------------ Light Nuclear Core > --- PROPULSION ------- Light Treads Subdweller Monowheel > --- UTILITY ---------- Large Storage Unit Targeting Computer > --- WEAPON ----------- Riot Gun Makeshift Shrapnel Gun > --- INVENTORY -------- Experimental Sensor Array Targeting Computer Light Armor Plating Light Armor Plating Scrap Shield Assault Rifle Assault Rifle Light Assault Rifle Battle Rifle Rocket Launcher Shrapnel Trap [Rating: 17] Favorites ----------- Power Ion Engine Engine Ion Engine Power Core Light Nuclear Core Propulsion Light Treads Treads Light Treads Leg Makeshift Leg Wheel Subdweller Monowheel Utility Large Storage Unit Device Experimental Sensor Array Storage Large Storage Unit Processor Targeting Computer Weapon Assault Rifle Energy Gun Riot Gun Ballistic Gun Assault Rifle Launcher Subdweller Shrapnel Launcher Build | -11 -10 -10 -10 ------- Run | Yrd Mat Min Sub Slots Evolved . | . . . . Power . | . . . . Propulsion . | . . . . Utility . | . . . . Weapon . | . . . . Parts Attached 21 | 6 3 2 10 Power 2 | 1 . . 1 Engine 1 | 1 . . . Core 1 | . . . 1 Reactor . | . . . . Propulsion 6 | 2 . . 4 Treads 2 | 2 . . . Leg 1 | . . . 1 Wheel 3 | . . . 3 Hover . | . . . . Flight . | . . . . Utility 6 | 1 3 2 . Device 1 | . . 1 . Storage 2 | 1 1 . . Processor 3 | . 2 1 . Hackware . | . . . . Protection . | . . . . Artifact . | . . . . Weapon 7 | 2 . . 5 Energy Gun 1 | . . . 1 Energy Cannon . | . . . . Ballistic Gun 5 | 2 . . 3 Ballistic Cannon . | . . . . Launcher 1 | . . . 1 Special Weapon . | . . . . Impact Weapon . | . . . . Slashing Weapon . | . . . . Piercing Weapon . | . . . . Special Melee Weapon . | . . . . Unidentified Prototypes 1 | . . 1 . Parts Lost 6 | . . . 6 Power 1 | . . . 1 Propulsion 3 | . . . 3 Utility . | . . . . Weapon 2 | . . . 2 Highest Loss Streak 3 | . . . 3 To Critical Strikes . | . . . . Average Backups 10 | . 8 12 11 Power . | . . 1 . Propulsion . | . . . . Utility 5 | . 5 6 5 Weapon 4 | . 2 5 5 Tool/Special . | . . . . Unused Backups 13 | . . . 13 Power . | . . . . Propulsion . | . . . . Utility 6 | . . . 6 Weapon 6 | . . . 6 Tool/Special 1 | . . . 1 Average Slot Usage (%) 90 | . 99 100 84 Engine 10 | . 14 14 7 Core 2 | . . . 3 Treads 19 | . 28 28 14 Wheel 1 | . . . 3 Storage 14 | . 14 14 14 Processor 13 | . 13 14 14 Energy Gun 1 | . . . 3 Ballistic Gun 22 | . 28 28 19 Peak Build Rating 17 | 6 8 16 17 Average Rating 10 | 4 7 8 12 On Entrance 5 | . 6 8 9 Avg Prop Armor Cover (%) 9 | . . . 9 Naked Turns . | . . . . Heaviest Build 33 | 14 29 29 33 Greatest Support 40 | 40 40 40 40 Greatest Overweight (x) 9 | . . . 9 Average Overweight (x) . | . . . . Largest Inventory Capacity 15 | 8 15 15 15 Average Capacity 14 | 6 14 15 15 Most Carried 15 | . 12 13 15 Average Carried 12 | . 8 12 13 Final Capacity 15 | 8 15 15 15 Final Carried 13 | . 12 13 12 Class Distribution -------------------- 100% | Mutant Dominant Class ---------------- Mutant | -10/Materials Mutant | -10/Mines Mutant | -10/Subcaves Resources | -11 -10 -10 -10 ----------- Run | Yrd Mat Min Sub Matter Collected 1248 | 234 362 12 640 Remotely . | . . . . Salvage Created 1189 | . 599 51 539 Parts 83 | . 36 6 41 Haulers Intercepted 1 | . 1 . . Recyclers Shooed . | . . . . Parts Field Recycled . | . . . . Retrieved Matter . | . . . . Parts Self-Destructed 19 | . . . 19 Prevented . | . . . . Parts Restored . | . . . . Kills | -11 -10 -10 -10 ------- Run | Yrd Mat Min Sub Combat Hostiles Destroyed 27 | . 12 . 15 Guns 26 | . 12 . 14 AOE 1 | . . . 1 Classes Destroyed 10 | . 7 . 3 Worker 6 | . 4 2 . Hauler 1 | . 1 . . Recycler 1 | . 1 . . Operator 1 | . 1 . . Watcher 2 | . 2 . . Swarmer 10 | . 6 . 4 Grunt 6 | . 6 . . Sentry 1 | . . . 1 Artisan 1 | . . . 1 Subdweller 10 | . . . 10 Best Kill Streak 6 | . 6 1 2 Combat Bots Only 3 | . 3 . 2 Max Kills in Single Turn 1 | . 1 1 1 Gunslinging . | . . . . Exploded 1 | . . . 1 Melee . | . . . . Uniques/NPCs Destroyed . | . . . . Combat | -11 -10 -10 -10 -------- Run | Yrd Mat Min Sub Hostile Shots Fired 141 | . 36 . 105 Missed 37 | . 9 . 28 Hits 104 | . 27 . 77 Projectile 104 | . 27 . 77 Damage Taken 1193 | . 280 . 913 Core 250 | . 45 . 205 Absorbed by Shields . | . . . . Core Remaining (%) 100 | 100 . . . Volleys Fired 130 | . 51 2 77 Largest 2 | . 2 2 2 Hottest 50 | . 40 40 50 Shots Fired 229 | . 102 4 123 Gun 221 | . 102 4 115 Cannon . | . . . . Launcher 8 | . . . 8 Special . | . . . . Kinetic 226 | . 102 4 120 Thermal . | . . . . Explosive . | . . . . Electromagnetic 3 | . . . 3 Robot Hit Streak 27 | . 24 27 20 Robot Miss Streak 4 | . 4 . 2 Penetration Max . | . . . . Secondary Targets 1 | . 1 . . Max Gunslinging Chain 1 | . 1 . . Shots Hit Robots 147 | . 72 3 72 Core Hits 73 | . 33 2 38 Critical Kills . | . . . . Critical Parts Destroyed 1 | . 1 . . Critical Strikes 1 | . 1 . . Destroy 1 | . 1 . . Melee Attacks . | . . . . Impact . | . . . . Slashing . | . . . . Piercing . | . . . . Sneak Attacks . | . . . . Combat Hostiles . | . . . . Follow-up Attacks . | . . . . Damage Inflicted 2443 | . 944 38 1461 Guns 2100 | . 944 38 1118 Cannons . | . . . . Explosions 343 | . . . 343 Melee . | . . . . Ramming . | . . . . Kinetic 2443 | . 944 38 1461 Thermal . | . . . . Explosive . | . . . . Electromagnetic . | . . . . Impact . | . . . . Slashing . | . . . . Piercing . | . . . . Highest Corruption . | . . . . Average Corruption . | . . . . Corruption Purged . | . . . . Corruption Blocked . | . . . . Overload Shots . | . . . . Overflow Damage . | . . . . Projectiles . | . . . . Explosions . | . . . . Melee . | . . . . Knockbacks . | . . . . Impact . | . . . . Kinetic . | . . . . Secondary . | . . . . Self-Inflicted Damage 14 | . . . 14 Shots 1 | . . . 1 Rammed . | . . . . Targets Rammed . | . . . . Kicked . | . . . . Crushed . | . . . . Highest Temperature 2 | . 2 . . Average Temperature 2 | . 2 . . Received Heat Transfer 378 | . 105 . 273 Siege Activations . | . . . . Martial Activations . | . . . . Shielding Activations . | . . . . Robots Disrupted . | . . . . Combat Hostiles . | . . . . Robots Corrupted . | . . . . Combat Hostiles . | . . . . Parts Fried . | . . . . Impact Corruptions . | . . . . Robots Melted . | . . . . Combat Hostiles . | . . . . Parts Melted . | . . . . Heat Transferred . | . . . . Parts Sabotaged . | . . . . Parts Stolen . | . . . . Parts Stripped . | . . . . Power Chain Reactions . | . . . . Alert | -11 -10 -10 -10 ------- Run | Yrd Mat Min Sub Maximum Alert Level . | . . . . Low Security (%) 100 | 100 100 100 . Level 1 . | . . . . Level 2 . | . . . . Level 3 . | . . . . Level 4 . | . . . . Level 5 . | . . . . High Security . | . . . . Max Security . | . . . . Peak Influence 137 | . 137 48 . Initial 43 | . . 43 . Average 23 | . 40 2 . Influence Increases 640 | . 426 10 204 Destroy 0b10 Robot/C 340 | . 240 . 100 Destroy 0b10 Robot/NC 55 | . 45 10 . Destroy Leader 76 | . 66 . 10 Allied During Kill 4 | . . . 4 Lose Combat Pursuer 165 | . 75 . 90 Influence Decreases 577 | . 313 123 141 Entered New Map 70 | . . 70 . Time Decay 437 | . 313 53 71 Lost Part 50 | . . . 50 Lost Ally 20 | . . . 20 Squads Dispatched 2 | . 2 . . Investigation 1 | . 1 . . Extermination . | . . . . Reinforcement 1 | . 1 . . Assault . | . . . . Garrison . | . . . . Intercept . | . . . . Searches Triggered . | . . . . Construction Impeded . | . . . . Haulers Reinforced . | . . . . Active Scanning Responses . | . . . . Cargo Convoy Interrupts . | . . . . Stealth | -11 -10 -10 -10 --------- Run | Yrd Mat Min Sub Distress Signals 1 | . 1 . . Communications Jammed . | . . . . Distress Signals . | . . . . Times Spotted 46 | . 25 . 21 Peak Tracking Total 5 | . 3 . 5 Tactical Retreats 6 | . 4 . 2 Traps | -11 -10 -10 -10 ------- Run | Yrd Mat Min Sub Traps Triggered 1 | . 1 . . Indirectly . | . . . . Trap Hack Attempts . | . . . . Triggered . | . . . . Disarmed . | . . . . Reprogrammed . | . . . . Reused . | . . . . Traps Extracted . | . . . . Installed . | . . . . Triggered . | . . . . Most Traps Carried 1 | . . . 1 Machines | -11 -10 -10 -10 ---------- Run | Yrd Mat Min Sub Machines Disabled . | . . . . Max in Single Turn . | . . . . Machines Repaired . | . . . . Machines Dismantled . | . . . . Machines Sabotaged . | . . . . Overloaded Fab Kills . | . . . . Hacking | -11 -10 -10 -10 --------- Run | Yrd Mat Min Sub Machines Accessed 6 | . 4 . 2 Terminals 4 | . 4 . . Fabricators . | . . . . Repair Stations . | . . . . Recycling Units . | . . . . Scanalyzers . | . . . . Garrison Access . | . . . . Total Hacks 8 | . 6 . 2 Successful 6 | . 4 . 2 Failed 1 | . 1 . . Catastrophic . | . . . . Database Lockouts 1 | . 1 . . Manual 5 | . 5 . . Terminals 6 | . 6 . . Fabricators . | . . . . Repair Stations . | . . . . Recycling Units . | . . . . Scanalyzers . | . . . . Garrison Access . | . . . . Terminal Hacks 4 | . 2 . 2 Robot Analysis 1 | . 1 . . Open Door 1 | . . . 1 Zone Layout 1 | . 1 . . Release Object 1 | . . . 1 Fabricator Hacks . | . . . . Repair Station Hacks . | . . . . Recycling Unit Hacks . | . . . . Scanalyzer . | . . . . Garrison Access Hacks . | . . . . Unauthorized Hacks 2 | . 2 . . Terminals 2 | . 2 . . Assimilate 1 | . 1 . . Operators 1 | . 1 . . Fabricators . | . . . . Repair Stations . | . . . . Recycling Units . | . . . . Scanalyzers . | . . . . Garrison Access . | . . . . Data Cores Recovered . | . . . . Used . | . . . . Hacking Detections 3 | . 3 . . Full Trace Events . | . . . . Feedback Events . | . . . . Feedback Blocked . | . . . . Robot Schematics Acquired . | . . . . Robots Built . | . . . . Authchips . | . . . . Time . | . . . . Total Robot Build Rating . | . . . . Part Schematics Acquired . | . . . . Parts Built . | . . . . Authchips . | . . . . Time . | . . . . Total Part Build Rating . | . . . . Part Studies Acquired . | . . . . Parts Repaired . | . . . . Time . | . . . . Parts Recycled . | . . . . Recycled Matter . | . . . . Retrieved Matter . | . . . . Retrieved Components . | . . . . Parts Scanalyzed . | . . . . Part Schematics Acquired . | . . . . Parts Damaged . | . . . . Bothacking | -11 -10 -10 -10 ------------ Run | Yrd Mat Min Sub Used RIF Installer . | . . . . Robots Hacked . | . . . . Non-combat . | . . . . Combat . | . . . . Robot Hacks Applied . | . . . . Relay Couplers Released . | . . . . Fabnet Peak Effective % . | . . . . Robots Rewired . | . . . . Allies Hacked . | . . . . Hacks Repelled . | . . . . Allies | -11 -10 -10 -10 -------- Run | Yrd Mat Min Sub Total Allies 2 | . . 2 . Largest Group 2 | . . 2 2 Highest-Rated Group 41 | . . 41 41 Highest-Rated Ally 31 | . . 31 31 Total Orders . | . . . . Ally Attacks 16 | . . . 16 Total Damage 170 | . . . 170 Kills 1 | . . . 1 Allies Corrupted . | . . . . Allies Melted . | . . . . Intel | -11 -10 -10 -10 ------- Run | Yrd Mat Min Sub Active Infowar (turns) 1 | . . 1 . Sensors 1 | . . 1 . Robot Analysis Total 1 | . 1 . . Derelict Logs Recovered 3 | . . 1 2 Drone Launches . | . . . . Drone Recoveries . | . . . . Exploration | -11 -10 -10 -10 ------------- Run | Yrd Mat Min Sub Turns Passed 5241 | 77 1175 951 3038 Spaces Moved 2547 | 46 620 530 1351 Core 42 | 4 . . 38 Treads 2015 | 42 620 530 823 Legs 119 | . . . 119 Wheels 371 | . . . 371 Hover . | . . . . Flight . | . . . . Fastest Speed 50 | 50 160 160 110 Average Speed 176 | 150 160 160 190 Slowest Speed 500 | 160 160 160 500 Overloaded Moves . | . . . . Propulsion Burnouts . | . . . . Robots Hopped . | . . . . Potential Cave-ins . | . . . . Cave-ins Triggered . | . . . . Exploration Rate (%) 58 | 4 84 90 56 Regions Visited 3 Branch Regions 2 Pre-discovered Areas 2 | . . 1 1 Known Exits Taken . | . . . . Unknown Exits Taken 3 | 1 1 1 . Scrap Searched 3 | . . 1 2 Spaces Dug . | . . . . Terrain Destroyed 131 | . . . 131 Melee . | . . . . Projectile . | . . . . AOE 131 | . . . 131 Terrain Rammed . | . . . . Walls Destroyed . | . . . . Machines Disabled . | . . . . Actions | -11 -10 -10 -10 --------- Run | Yrd Mat Min Sub Total 3080 | 51 700 630 1699 Wait 344 | . 13 91 240 Move 2544 | 45 619 529 1351 Hop . | . . . . Pick Up 21 | . 13 2 6 Fast Attach 15 | 6 2 1 6 Attach 6 | . . 1 5 Detach 2 | . . . 2 Swap 3 | . 1 . 2 Drop 12 | . 1 2 9 Fire 130 | . 51 2 77 Melee . | . . . . Ram . | . . . . Kick . | . . . . Crush . | . . . . Escape Stasis . | . . . . Rewire 2 | . . 2 . Trap . | . . . . Miscellaneous 1 | . . . 1 Route ------- -11/Scrapyard -10/Materials (discovered 4 exits: [*Mat x3] / [*Min]) -10/Mines (discovered 3 exits: [*Mat] / [*Exi] / *Sub) -10/Subcaves (discovered 4 exits: *Mat x2 / [*Rec] / [*Scr]) History --------- Turn | Location | Event 13 | -11/Scrapyard | Discovered new exit (range 16) 78 | -11/Scrapyard | Entered Materials 230 | -10/Materials | Central database locked down 309 | -10/Materials | Build established: Mutant 558 | -10/Materials | Discovered new exit (range 8) 830 | -10/Materials | Discovered new exit (range 4) 963 | -10/Materials | Discovered new exit (range 15) 1232 | -10/Materials | Discovered new exit (range 13) 1253 | -10/Materials | Entered Mines 1357 | -10/Mines | Learned location of Storage (-7) 1391 | -10/Mines | Received a Rocket Launcher from a helpful Derelict 1507 | -10/Mines | Discovered new exit (range 9) 1846 | -10/Mines | Deemed a non-threat by the Exiles lab entrance 1846 | -10/Mines | Discovered new exit (range 5) 2024 | -10/Mines | Found a damaged Exp. Sensor Array with a note attached 2031 | -10/Mines | Found Prototype Device 2031 | -10/Mines | Identified Exp. Sensor Array 2178 | -10/Mines | Discovered new exit (range 5) 2204 | -10/Mines | Entered Subcaves 2204 | -10/Subcaves | Accompanied by 2 allies 2205 | -10/Subcaves | Approached by a straggling Scientist 2209 | -10/Subcaves | Led the pair of lost Derelicts to an unsafe place 2209 | -10/Subcaves | Identified exit to Materials 2641 | -10/Subcaves | Learned location of Zion (-6) 3022 | -10/Subcaves | Shifting Twisted Machinery released Sub. Beam Cannon 3278 | -10/Subcaves | Shifting Twisted Machinery released Sub. Laser 4105 | -10/Subcaves | Released subatomizers from SUBCON Basin 4614 | -10/Subcaves | Core integrity fell below 50% 4668 | -10/Subcaves | Lost 3 parts (1n2w) 4762 | -10/Subcaves | Core integrity fell below 20% 4816 | -10/Subcaves | Discovered new exit (range 13) 4856 | -10/Subcaves | Shifting Twisted Machinery released Multitool 4862 | -10/Subcaves | Shifting Twisted Machinery released Sub. Monowheel 4875 | -10/Subcaves | Discovered exit to Materials (range 10) 5242 | -10/Subcaves | Destroyed by S-10 Pest with Light Assault Rifle Last Messages --------------- 04818_ Acquired 53 matter. Multitool falls loose from the Twisted Machinery. Sub. Monowheel falls loose from the Twisted Machinery. 04862_ Acquired Multitool. 04875_ EXIT=FOUND: MATERIALS 04951_ GC-I4U(R) destroyed. 04953_ Acquired 44 matter. 04957_ Acquired Flamer. 05055_ FD-JKS(R) destroyed. 05057_ Acquired 34 matter. 05075_ Mak. Leg destroyed. 05075_ AV-HJ5(R) destroyed. 05078_ Acquired 41 matter. 05086_ Acquired Sub. Monowheel. 05156_ Acquired 49 matter. 05196_ Acquired 13 matter. 05211_ Acquired 35 matter. 05241_ S-10 Pest destroyed. Map ----- +----------------------------------------------------+ | !#?## "" ##????# ## " #?## ## | | ##?# "" ##??## """##### | | #### # #### ## ###### = #?## | | ### # ######????#### #??# ## | | #### #???????????###### ##??##### | | # # #####????????????????########???????? | | #???????????????????????????????????? | | ###???????????????????????????????????? | | # ## ####??????????????????????????????????? | | ###### #??????????????????????????????????? | | ##????## ??????????????????????????????????? | | #?####?# ###?????????????????????????????????? | | #### #? ##???????????????????????????????????? | | #### #?# #????????????????????????????????????? | | ?## ### #????????????????????????????????????# | | ## ## #????????????????????????????????????# | | ##????????????????????????????????????# | | ####??????????????????????????????????# | | # ## ##??###????" ??????????????????????? | | ## ##?# ### ??????????????????????? | | ?## ### ??????????????????????? | | ??## ## #????????????????????????????? | | ???#### #???###??????????????????????? | | ?????# ! #??## #??????????????????????? | | ????# #### #### #??????????????????????? | | ???# #??## @#??????????????????????? | | ??# #???#### ss##?? ?????????????????? | | ??##### #??????## ### ???????????????? | | ??????## ##???????# "" #?????????????? | | ???????####???????## #"" #??????????????? | | ??????????????????# ##" #??????????????? | | ??????????????????## "#" ###??????????????? | | ??????????????????#"" ""##" ##????????????????? | | ??????????????????###""#""##?"" #????????????????? | | ????????????????????####""#????? ???????????????? | | ????????????????????????"""#????? ??????????????? | | ???????????????????????? "##?????? ?????????????? | | ????????????????????????? ???????? ?????????????? | | ????????????????????????? ???????????????????????? | | ????????????????????????? ???????????????????????? | | ?????????????????????????????????????????????????? | | ?????????????????????????????????????????????????? | | ?????????????????????????????????????????????????? | | ?????????????????????????????????????????????????? | | ?????????????????????????????????????????????????? | | ?????????????????????????????????????????????????? | | ?????????????????????????????????????????????????? | | ?????????????????????????????????????????????????? | | ?????????????????????????????????????????????????? | | ?????????????????????????????????????????????????? | +----------------------------------------------------+ Best States ------------- Heat Dissipation 25 Energy Generation 14 Energy Capacity 250 Matter Stores 300 Matter Capacity 300 Sight Range 16 Terrain Scan Density 10 Evasion (%) 40 Targeting Accuracy 5 Recoil Reduction 2 Item Schematics ----------------- None Robot Schematics ------------------ None Fabricated ------------ Nothing Repaired ---------- Nothing Studied --------- None Alien Tech Used ----------------- None Achievements -------------- None Challenges ------------ None Game ------ Seed DrainedDefenseStreamer Manual? 0 Play Time 00:22:56 Cumulative 603.4 hours Start 2026.04.27 @ 18:26:57 End 2026.04.27 @ 18:51:31 Sessions 1 Manual Loads 0 Difficulty Rogue Special Mode None Game No. 929 Rogue 774 Adventurer 148 Explorer 7 Win Type - Total 29 Types 21/1/4/1/0/0/1/0/0/1 Lore% 82 Gallery% 82 Achievement% 75 Wizard Run 0 Options --------- Layout 1 ASCII 0 Keyboard 0 Movement Numpad Keybinds 0 Fullscreen 2 Font 24/Smallcaps Map View 50x35 Zoom Use 0% Tactical HUD 1 Map Filters NONE Filters NONE Steam 1 RUN: 0bfa0050-41c5-4925-9e25-b4ca9631679d